[Event "Titled Tuesday Blitz May 4 2021"]
[White "Abdalla, Luiz Guilherme Aurelli"]
[Black "Nitin, S."]
[WhiteFideId "2111080"]
[BlackFideId "5018277"]
[WhiteElo "2152"]
[BlackElo "2431"]
[Result "0-1"]
[Round "01"]
[TimeControl "180+1"]
[Date "2021.05.04"]
[WhiteClock "0:00:19"]
[BlackClock "0:00:30"]

1. d4 {[%clk 0:03:00]}  Nf6 {[%clk 0:02:58]} 2. c4 {[%clk 0:03:01]}  e6 {[%clk 0:02:59]} 3. Nc3 {[%clk 0:03:01]}  Bb4 {[%clk 0:02:58]} 4. Qc2 {[%clk 0:03:01]}  O-O {[%clk 0:02:57]} 5. e4 {[%clk 0:03:01]}  c5 {[%clk 0:02:54]} 6. dxc5 {[%clk 0:02:56]}  Qc7 {[%clk 0:02:47]} 7. Nf3 {[%clk 0:02:50]}  Nc6 {[%clk 0:02:31]} 8. Bd3 {[%clk 0:02:40]}  Bxc5 {[%clk 0:02:30]} 9. a3 {[%clk 0:02:38]}  Be7 {[%clk 0:02:27]} 10. O-O {[%clk 0:02:35]}  d6 {[%clk 0:02:28]} 11. b4 {[%clk 0:02:30]}  a6 {[%clk 0:02:28]} 12. Bb2 {[%clk 0:02:30]}  Ne5 {[%clk 0:02:28]} 13. Nxe5 {[%clk 0:02:25]}  dxe5 {[%clk 0:02:29]} 14. Rac1 {[%clk 0:02:17]}  b6 {[%clk 0:02:28]} 15. Rfd1 {[%clk 0:02:17]}  Bb7 {[%clk 0:02:27]} 16. f3 {[%clk 0:02:16]}  Nh5 {[%clk 0:02:25]} 17. Ne2 {[%clk 0:02:15]}  a5 {[%clk 0:02:22]} 18. Qb3 {[%clk 0:02:02]}  Rfd8 {[%clk 0:02:13]} 19. Kh1 {[%clk 0:02:01]}  Bg5 {[%clk 0:02:10]} 20. Ra1 {[%clk 0:01:55]}  Be3 {[%clk 0:02:10]} 21. Bc2 {[%clk 0:01:46]}  Bd2 {[%clk 0:01:59]} 22. Bd3 {[%clk 0:01:36]}  Bh6 {[%clk 0:01:56]} 23. Qc3 {[%clk 0:01:32]}  f6 {[%clk 0:01:51]} 24. Bc1 {[%clk 0:01:14]}  Bxc1 {[%clk 0:01:49]} 25. Raxc1 {[%clk 0:01:14]}  Rac8 {[%clk 0:01:45]} 26. Qb3 {[%clk 0:01:12]}  Qe7 {[%clk 0:01:42]} 27. bxa5 {[%clk 0:01:09]}  bxa5 {[%clk 0:01:41]} 28. c5 {[%clk 0:01:07]}  Bc6 {[%clk 0:01:38]} 29. Bc4 {[%clk 0:01:07]}  Kf7 {[%clk 0:01:34]} 30. Nc3 {[%clk 0:00:56]}  Rb8 {[%clk 0:01:28]} 31. Qa2 {[%clk 0:00:54]}  Nf4 {[%clk 0:01:26]} 32. g3 {[%clk 0:00:49]}  Nh3 {[%clk 0:01:26]} 33. Kg2 {[%clk 0:00:48]}  Ng5 {[%clk 0:01:26]} 34. h4 {[%clk 0:00:45]}  Nxf3 {[%clk 0:01:24]} 35. Kxf3 {[%clk 0:00:46]}  Rd4 {[%clk 0:01:25]} 36. Rxd4 {[%clk 0:00:37]}  exd4 {[%clk 0:01:25]} 37. Ne2 {[%clk 0:00:36]}  Rd8 {[%clk 0:01:19]} 38. Nf4 {[%clk 0:00:34]}  Bd7 {[%clk 0:01:16]} 39. c6 {[%clk 0:00:33]}  Bc8 {[%clk 0:01:16]} 40. c7 {[%clk 0:00:29]}  Rd6 {[%clk 0:01:16]} 41. Bb3 {[%clk 0:00:21]}  a4 {[%clk 0:01:05]} 42. Bc4 {[%clk 0:00:19]}  d3 {[%clk 0:01:00]} 43. Nxd3 {[%clk 0:00:19]}  f5 {[%clk 0:01:00]} 44. e5 {[%clk 0:00:19]}  Bb7+ {[%clk 0:00:57]} 45. Kf2 {[%clk 0:00:18]}  Rb6 {[%clk 0:00:53]} 46. Bxe6+ {[%clk 0:00:17]}  Rxe6 {[%clk 0:00:39]} 47. c8=Q {[%clk 0:00:17]}  Bxc8 {[%clk 0:00:38]} 48. Rxc8 {[%clk 0:00:18]}  Qa7+ {[%clk 0:00:36]} 49. Kg2 {[%clk 0:00:17]}  Qb7+ {[%clk 0:00:36]} 50. Kh2 {[%clk 0:00:17]}  Qxc8 {[%clk 0:00:36]} 51. Nf4 {[%clk 0:00:18]}  Qc6 {[%clk 0:00:34]} 52. Qxe6+ {[%clk 0:00:19]}  Qxe6 {[%clk 0:00:34]} 53. Nxe6 {[%clk 0:00:20]}  Kxe6 {[%clk 0:00:35]} 54. Kg2 {[%clk 0:00:19]}  Kxe5 {[%clk 0:00:35]} 55. Kf3 {[%clk 0:00:20]}  g6 {[%clk 0:00:35]} 56. Ke3 {[%clk 0:00:21]}  h6 {[%clk 0:00:36]} 57. Kd3 {[%clk 0:00:21]}  g5 {[%clk 0:00:36]} 58. Ke3 {[%clk 0:00:22]}  Kd5 {[%clk 0:00:32]} 59. Kd3 {[%clk 0:00:21]}  Ke5 {[%clk 0:00:28]} 60. Ke3 {[%clk 0:00:22]}  g4 {[%clk 0:00:29]} 61. Kd3 {[%clk 0:00:20]}  f4 {[%clk 0:00:29]} 62. gxf4+ {[%clk 0:00:19]}  Kxf4 {[%clk 0:00:30]} 0-1


[Site "https://www.chess.com"]

[Event "Titled Tuesday Blitz May 4 2021"]
[White "Acor, Corey"]
[Black "Kubatko, Ivan"]
[WhiteFideId "2024861"]
[BlackFideId "24111473"]
[WhiteElo "2755"]
[BlackElo "2285"]
[Result "1-0"]
[Round "01"]
[TimeControl "180+1"]
[Date "2021.05.04"]
[WhiteClock "0:00:54"]
[BlackClock "0:00:03"]

1. e4 {[%clk 0:03:00]}  d5 {[%clk 0:03:00]} 2. exd5 {[%clk 0:02:59]}  Qxd5 {[%clk 0:03:01]} 3. Nc3 {[%clk 0:02:58]}  Qa5 {[%clk 0:03:01]} 4. g3 {[%clk 0:02:58]}  h5 {[%clk 0:03:00]} 5. Bg2 {[%clk 0:02:57]}  h4 {[%clk 0:03:01]} 6. g4 {[%clk 0:02:57]}  h3 {[%clk 0:02:55]} 7. Nxh3 {[%clk 0:02:51]}  Nf6 {[%clk 0:02:54]} 8. f3 {[%clk 0:02:50]}  e5 {[%clk 0:02:43]} 9. d3 {[%clk 0:02:44]}  Nc6 {[%clk 0:02:42]} 10. Ng5 {[%clk 0:02:42]}  Bd7 {[%clk 0:02:33]} 11. O-O {[%clk 0:02:36]}  Bd6 {[%clk 0:01:37]} 12. Nce4 {[%clk 0:02:35]}  Nxe4 {[%clk 0:01:17]} 13. Nxe4 {[%clk 0:02:36]}  Be7 {[%clk 0:01:17]} 14. Be3 {[%clk 0:02:32]}  O-O-O {[%clk 0:01:16]} 15. Qd2 {[%clk 0:02:25]}  Qa6 {[%clk 0:01:12]} 16. c3 {[%clk 0:02:18]}  f5 {[%clk 0:01:09]} 17. gxf5 {[%clk 0:02:18]}  Bxf5 {[%clk 0:01:09]} 18. Rfd1 {[%clk 0:02:09]}  Rh7 {[%clk 0:01:00]} 19. d4 {[%clk 0:02:00]}  exd4 {[%clk 0:00:54]} 20. cxd4 {[%clk 0:02:01]}  Rdh8 {[%clk 0:00:53]} 21. Bf4 {[%clk 0:01:58]}  Rd8 {[%clk 0:00:24]} 22. Qf2 {[%clk 0:01:54]}  g5 {[%clk 0:00:19]} 23. Bg3 {[%clk 0:01:53]}  Rf8 {[%clk 0:00:16]} 24. Rac1 {[%clk 0:01:51]}  g4 {[%clk 0:00:16]} 25. Nc5 {[%clk 0:01:40]}  Bxc5 {[%clk 0:00:15]} 26. Rxc5 {[%clk 0:01:41]}  gxf3 {[%clk 0:00:14]} 27. Qxf3 {[%clk 0:01:36]}  Rhf7 {[%clk 0:00:05]} 28. Qc3 {[%clk 0:01:36]}  Bd7 {[%clk 0:00:04]} 29. d5 {[%clk 0:01:31]}  Qb6 {[%clk 0:00:04]} 30. dxc6 {[%clk 0:01:30]}  Bxc6 {[%clk 0:00:05]} 31. Bxc6 {[%clk 0:01:29]}  bxc6 {[%clk 0:00:06]} 32. b4 {[%clk 0:01:24]}  Qa6 {[%clk 0:00:04]} 33. Qc4 {[%clk 0:01:16]}  Qa3 {[%clk 0:00:02]} 34. Qe6+ {[%clk 0:01:10]}  Kb8 {[%clk 0:00:02]} 35. Rxc6 {[%clk 0:01:06]}  Qxb4 {[%clk 0:00:01]} 36. Qb3 {[%clk 0:00:57]}  Qxb3 {[%clk 0:00:01]} 37. axb3 {[%clk 0:00:58]}  Kb7 {[%clk 0:00:01]} 38. Rdc1 {[%clk 0:00:58]}  a5 {[%clk 0:00:02]} 39. Rxc7+ {[%clk 0:00:57]}  Rxc7 {[%clk 0:00:02]} 40. Rxc7+ {[%clk 0:00:57]}  Ka6 {[%clk 0:00:03]} 41. Rc5 {[%clk 0:00:56]}  Rf3 {[%clk 0:00:03]} 42. Be1 {[%clk 0:00:54]} 1-0


[Site "https://www.chess.com"]

[Event "Titled Tuesday Blitz May 4 2021"]
[White "Alavi, Sayed Javad"]
[Black "Kaminski, Victor"]
[WhiteFideId "12500607"]
[BlackFideId "1131630"]
[WhiteElo "2495"]
[BlackElo "2181"]
[Result "1-0"]
[Round "01"]
[TimeControl "180+1"]
[Date "2021.05.04"]
[WhiteClock "0:00:44"]
[BlackClock "0:00:21"]

1. e4 {[%clk 0:03:00]}  e5 {[%clk 0:02:59]} 2. Nf3 {[%clk 0:03:00]}  Nc6 {[%clk 0:02:59]} 3. Bc4 {[%clk 0:03:00]}  Bc5 {[%clk 0:02:59]} 4. O-O {[%clk 0:02:59]}  Nf6 {[%clk 0:02:58]} 5. d3 {[%clk 0:02:59]}  d6 {[%clk 0:02:58]} 6. c3 {[%clk 0:02:58]}  a6 {[%clk 0:02:58]} 7. Bb3 {[%clk 0:02:57]}  h6 {[%clk 0:02:57]} 8. Be3 {[%clk 0:02:53]}  O-O {[%clk 0:02:54]} 9. Nbd2 {[%clk 0:02:50]}  Be6 {[%clk 0:02:50]} 10. Bxe6 {[%clk 0:02:37]}  fxe6 {[%clk 0:02:48]} 11. Bxc5 {[%clk 0:02:13]}  dxc5 {[%clk 0:02:49]} 12. Nc4 {[%clk 0:02:14]}  Nd7 {[%clk 0:02:44]} 13. Qb3 {[%clk 0:01:52]}  b5 {[%clk 0:02:42]} 14. Ne3 {[%clk 0:01:52]}  Qe7 {[%clk 0:02:38]} 15. a4 {[%clk 0:01:46]}  Rab8 {[%clk 0:02:22]} 16. axb5 {[%clk 0:01:44]}  axb5 {[%clk 0:02:23]} 17. Ra6 {[%clk 0:01:38]}  Nd8 {[%clk 0:02:09]} 18. Ng4 {[%clk 0:01:30]}  c4 {[%clk 0:02:01]} 19. dxc4 {[%clk 0:01:25]}  Nc5 {[%clk 0:01:55]} 20. Qa3 {[%clk 0:01:17]}  b4 {[%clk 0:01:52]} 21. cxb4 {[%clk 0:01:15]}  Nxa6 {[%clk 0:01:52]} 22. Qxa6 {[%clk 0:01:16]}  Rxb4 {[%clk 0:01:41]} 23. Ngxe5 {[%clk 0:01:13]}  Qd6 {[%clk 0:01:23]} 24. Qa3 {[%clk 0:01:13]}  Rb7 {[%clk 0:01:12]} 25. c5 {[%clk 0:01:09]}  Qe7 {[%clk 0:00:41]} 26. Ng6 {[%clk 0:01:09]}  Qf6 {[%clk 0:00:41]} 27. Nxf8 {[%clk 0:01:08]}  Qxf8 {[%clk 0:00:42]} 28. Rd1 {[%clk 0:01:01]}  Nc6 {[%clk 0:00:39]} 29. Qa6 {[%clk 0:00:53]}  Nd8 {[%clk 0:00:33]} 30. Qa8 {[%clk 0:00:44]}  Rxb2 {[%clk 0:00:27]} 31. Qxd8 {[%clk 0:00:43]}  Qxd8 {[%clk 0:00:22]} 32. Rxd8+ {[%clk 0:00:44]}  Kf7 {[%clk 0:00:22]} 33. h3 {[%clk 0:00:44]}  Rc2 {[%clk 0:00:21]} 34. Rd7+ {[%clk 0:00:44]}  Kf6 {[%clk 0:00:21]} 35. Rxc7 {[%clk 0:00:44]} 1-0


[Site "https://www.chess.com"]

[Event "Titled Tuesday Blitz May 4 2021"]
[White "Alavkin, Arseny"]
[Black "Perestjuk, Marko"]
[WhiteFideId "4120612"]
[BlackFideId "1270254"]
[WhiteElo "2416"]
[BlackElo "2079"]
[Result "1-0"]
[Round "01"]
[TimeControl "180+1"]
[Date "2021.05.04"]
[WhiteClock "0:01:01"]
[BlackClock "0:00:02"]

1. c4 {[%clk 0:02:52]}  c5 {[%clk 0:02:59]} 2. Nc3 {[%clk 0:02:44]}  Nf6 {[%clk 0:02:59]} 3. g3 {[%clk 0:02:44]}  d5 {[%clk 0:02:59]} 4. cxd5 {[%clk 0:02:45]}  Nxd5 {[%clk 0:03:00]} 5. Bg2 {[%clk 0:02:46]}  Nc7 {[%clk 0:03:01]} 6. Nf3 {[%clk 0:02:46]}  Nc6 {[%clk 0:03:01]} 7. O-O {[%clk 0:02:47]}  g6 {[%clk 0:03:01]} 8. a3 {[%clk 0:02:48]}  Bg7 {[%clk 0:03:01]} 9. Rb1 {[%clk 0:02:46]}  O-O {[%clk 0:03:01]} 10. b4 {[%clk 0:02:45]}  cxb4 {[%clk 0:03:02]} 11. axb4 {[%clk 0:02:46]}  Bg4 {[%clk 0:02:58]} 12. b5 {[%clk 0:02:45]}  Nd4 {[%clk 0:02:58]} 13. Nxd4 {[%clk 0:02:45]}  Bxd4 {[%clk 0:02:58]} 14. Bxb7 {[%clk 0:02:45]}  Rb8 {[%clk 0:02:59]} 15. Bg2 {[%clk 0:02:45]}  Bxc3 {[%clk 0:02:56]} 16. dxc3 {[%clk 0:02:46]}  Qxd1 {[%clk 0:02:55]} 17. Rxd1 {[%clk 0:02:47]}  Bxe2 {[%clk 0:02:55]} 18. Re1 {[%clk 0:02:47]}  Bxb5 {[%clk 0:02:53]} 19. Rxe7 {[%clk 0:02:47]}  Rfc8 {[%clk 0:02:48]} 20. Bf4 {[%clk 0:02:45]}  Bc4 {[%clk 0:02:03]} 21. Rbe1 {[%clk 0:02:31]}  Ne6 {[%clk 0:02:02]} 22. Bxb8 {[%clk 0:02:30]}  Rxb8 {[%clk 0:02:03]} 23. Rxa7 {[%clk 0:02:30]}  Rb2 {[%clk 0:02:00]} 24. Bf1 {[%clk 0:02:28]}  Bd5 {[%clk 0:01:59]} 25. c4 {[%clk 0:02:29]}  Bf3 {[%clk 0:01:58]} 26. Bg2 {[%clk 0:02:28]}  Be2 {[%clk 0:01:56]} 27. Ra8+ {[%clk 0:02:27]}  Kg7 {[%clk 0:01:56]} 28. Rc8 {[%clk 0:02:28]}  Rc2 {[%clk 0:01:54]} 29. c5 {[%clk 0:02:27]}  Nd4 {[%clk 0:01:54]} 30. Re8 {[%clk 0:02:17]}  Bf3 {[%clk 0:01:45]} 31. R8e5 {[%clk 0:02:11]}  Kf6 {[%clk 0:01:34]} 32. h3 {[%clk 0:02:05]}  Ne2+ {[%clk 0:01:27]} 33. Kh2 {[%clk 0:01:58]}  Nd4 {[%clk 0:00:47]} 34. Kg1 {[%clk 0:01:57]}  Ne2+ {[%clk 0:00:46]} 35. R5xe2 {[%clk 0:01:57]}  Bxe2 {[%clk 0:00:45]} 36. c6 {[%clk 0:01:58]}  Bb5 {[%clk 0:00:42]} 37. Rb1 {[%clk 0:01:57]}  Ba4 {[%clk 0:00:35]} 38. Rb4 {[%clk 0:01:55]}  Rc1+ {[%clk 0:00:29]} 39. Kh2 {[%clk 0:01:54]}  Bd1 {[%clk 0:00:28]} 40. Rb7 {[%clk 0:01:48]}  Ba4 {[%clk 0:00:20]} 41. Ra7 {[%clk 0:01:42]}  Bb5 {[%clk 0:00:17]} 42. Rb7 {[%clk 0:01:42]}  Ba4 {[%clk 0:00:17]} 43. Rb4 {[%clk 0:01:33]}  Bd1 {[%clk 0:00:15]} 44. g4 {[%clk 0:01:33]}  Ke6 {[%clk 0:00:14]} 45. Kg3 {[%clk 0:01:33]}  Kd6 {[%clk 0:00:14]} 46. h4 {[%clk 0:01:31]}  Rc3+ {[%clk 0:00:13]} 47. Kf4 {[%clk 0:01:31]}  Bb3 {[%clk 0:00:14]} 48. Be4 {[%clk 0:01:28]}  Bc2 {[%clk 0:00:06]} 49. Rd4+ {[%clk 0:01:27]}  Kc5 {[%clk 0:00:06]} 50. Rd5+ {[%clk 0:01:22]}  Kb6 {[%clk 0:00:06]} 51. Rd7 {[%clk 0:01:03]}  Bxe4 {[%clk 0:00:05]} 52. Kxe4 {[%clk 0:01:01]}  Kxc6 {[%clk 0:00:02]} 53. Rxf7 {[%clk 0:01:01]}  h5 {[%clk 0:00:02]} 54. Rf6+ {[%clk 0:01:01]}  Kd7 {[%clk 0:00:02]} 55. g5 {[%clk 0:01:00]}  Rh3 {[%clk 0:00:01]} 56. Rxg6 {[%clk 0:00:59]}  Rxh4+ {[%clk 0:00:01]} 57. f4 {[%clk 0:01:00]}  Rg4 {[%clk 0:00:01]} 58. Kf5 {[%clk 0:01:00]}  h4 {[%clk 0:00:02]} 59. Rh6 {[%clk 0:01:01]} 1-0


[Site "https://www.chess.com"]

[Event "Titled Tuesday Blitz May 4 2021"]
[White "AldokhinIvan"]
[Black "Dovbnia, Nikita"]
[BlackFideId "54104599"]
[WhiteElo "2515"]
[BlackElo "2056"]
[Result "1-0"]
[Round "01"]
[TimeControl "180+1"]
[Date "2021.05.04"]
[WhiteClock "0:02:20"]
[BlackClock "0:01:02"]

1. e4 {[%clk 0:02:46]}  c5 {[%clk 0:02:59]} 2. Nf3 {[%clk 0:02:47]}  d6 {[%clk 0:02:59]} 3. d4 {[%clk 0:02:47]}  cxd4 {[%clk 0:03:00]} 4. Nxd4 {[%clk 0:02:48]}  Nf6 {[%clk 0:03:01]} 5. Nc3 {[%clk 0:02:49]}  a6 {[%clk 0:03:01]} 6. Bc4 {[%clk 0:02:49]}  e6 {[%clk 0:03:01]} 7. Bb3 {[%clk 0:02:49]}  Be7 {[%clk 0:03:01]} 8. Qe2 {[%clk 0:02:49]}  O-O {[%clk 0:03:01]} 9. Be3 {[%clk 0:02:49]}  Qc7 {[%clk 0:03:01]} 10. g4 {[%clk 0:02:48]}  Nc6 {[%clk 0:03:00]} 11. g5 {[%clk 0:02:41]}  Nxd4 {[%clk 0:02:59]} 12. Bxd4 {[%clk 0:02:38]}  Nd7 {[%clk 0:02:59]} 13. h4 {[%clk 0:02:37]}  b5 {[%clk 0:02:56]} 14. g6 {[%clk 0:02:25]}  hxg6 {[%clk 0:02:53]} 15. h5 {[%clk 0:02:25]}  g5 {[%clk 0:02:45]} 16. h6 {[%clk 0:02:25]}  gxh6 {[%clk 0:01:16]} 17. Rxh6 {[%clk 0:02:23]}  Ne5 {[%clk 0:01:02]} 18. Qh5 {[%clk 0:02:20]} 1-0


[Site "https://www.chess.com"]

[Event "Titled Tuesday Blitz May 4 2021"]
[White "Almeida Junior, Alvaro Alves de"]
[Black "Principe, Gerson"]
[WhiteFideId "2149974"]
[BlackFideId "3804550"]
[WhiteElo "2097"]
[BlackElo "2280"]
[Result "1-0"]
[Round "01"]
[TimeControl "180+1"]
[Date "2021.05.04"]
[WhiteClock "0:00:27"]
[BlackClock "0:00:57"]

1. e4 {[%clk 0:03:00]}  c5 {[%clk 0:02:59]} 2. Nf3 {[%clk 0:03:00]}  e6 {[%clk 0:02:59]} 3. d4 {[%clk 0:02:57]}  cxd4 {[%clk 0:02:59]} 4. Nxd4 {[%clk 0:02:58]}  Nf6 {[%clk 0:02:58]} 5. Bd3 {[%clk 0:02:57]}  Nc6 {[%clk 0:02:58]} 6. Nb3 {[%clk 0:02:53]}  d5 {[%clk 0:02:58]} 7. exd5 {[%clk 0:02:53]}  exd5 {[%clk 0:02:55]} 8. O-O {[%clk 0:02:53]}  Be7 {[%clk 0:02:56]} 9. Nc3 {[%clk 0:02:52]}  O-O {[%clk 0:02:57]} 10. Bg5 {[%clk 0:02:48]}  Be6 {[%clk 0:02:57]} 11. Re1 {[%clk 0:02:46]}  Re8 {[%clk 0:02:56]} 12. h3 {[%clk 0:02:42]}  a6 {[%clk 0:02:55]} 13. Ne2 {[%clk 0:02:30]}  Qb6 {[%clk 0:02:44]} 14. Nf4 {[%clk 0:02:23]}  Bd6 {[%clk 0:02:21]} 15. Nxe6 {[%clk 0:02:08]}  fxe6 {[%clk 0:02:17]} 16. Bxf6 {[%clk 0:01:46]}  gxf6 {[%clk 0:02:16]} 17. Qg4+ {[%clk 0:01:46]}  Kh8 {[%clk 0:02:17]} 18. Rxe6 {[%clk 0:01:41]}  Qc7 {[%clk 0:02:14]} 19. Rae1 {[%clk 0:01:17]}  Rf8 {[%clk 0:02:12]} 20. Qh5 {[%clk 0:01:07]}  Be5 {[%clk 0:02:01]} 21. f4 {[%clk 0:00:44]}  Nd4 {[%clk 0:01:26]} 22. Nxd4 {[%clk 0:00:33]}  Bxd4+ {[%clk 0:01:24]} 23. Kh1 {[%clk 0:00:33]}  f5 {[%clk 0:01:14]} 24. Re7 {[%clk 0:00:30]}  Qxe7 {[%clk 0:00:56]} 25. Rxe7 {[%clk 0:00:28]}  Bg7 {[%clk 0:00:57]} 26. Bxf5 {[%clk 0:00:27]} 1-0


[Site "https://www.chess.com"]

[Event "Titled Tuesday Blitz May 4 2021"]
[White "Alvarez Fernandez, Enrique"]
[Black "Sokolov, Andrey M."]
[WhiteFideId "2227398"]
[BlackFideId "4171438"]
[WhiteElo "2316"]
[BlackElo "2349"]
[Result "1-0"]
[Round "01"]
[TimeControl "180+1"]
[Date "2021.05.04"]
[WhiteClock "0:00:57"]
[BlackClock "0:00:16"]

1. e4 {[%clk 0:02:59]}  c5 {[%clk 0:02:56]} 2. Nf3 {[%clk 0:02:57]}  Nc6 {[%clk 0:02:56]} 3. d4 {[%clk 0:02:53]}  cxd4 {[%clk 0:02:54]} 4. Nxd4 {[%clk 0:02:53]}  g6 {[%clk 0:02:53]} 5. Nc3 {[%clk 0:02:52]}  Bg7 {[%clk 0:02:53]} 6. Be3 {[%clk 0:02:52]}  Nf6 {[%clk 0:02:52]} 7. f3 {[%clk 0:02:51]}  O-O {[%clk 0:02:47]} 8. Be2 {[%clk 0:02:49]}  d5 {[%clk 0:02:46]} 9. Nxc6 {[%clk 0:02:46]}  bxc6 {[%clk 0:02:44]} 10. e5 {[%clk 0:02:46]}  Ne8 {[%clk 0:02:40]} 11. f4 {[%clk 0:02:46]}  f6 {[%clk 0:02:37]} 12. Bf3 {[%clk 0:02:40]}  e6 {[%clk 0:02:33]} 13. Bc5 {[%clk 0:02:38]}  Rf7 {[%clk 0:02:30]} 14. Qe2 {[%clk 0:02:36]}  fxe5 {[%clk 0:02:22]} 15. fxe5 {[%clk 0:02:35]}  Qc7 {[%clk 0:02:07]} 16. Bd4 {[%clk 0:02:24]}  c5 {[%clk 0:01:59]} 17. Nb5 {[%clk 0:02:23]}  Qb6 {[%clk 0:01:57]} 18. Bc3 {[%clk 0:02:15]}  Rb8 {[%clk 0:01:35]} 19. a4 {[%clk 0:02:07]}  a6 {[%clk 0:01:28]} 20. Na3 {[%clk 0:01:59]}  Bd7 {[%clk 0:01:12]} 21. b3 {[%clk 0:01:57]}  Qc7 {[%clk 0:00:43]} 22. Bb2 {[%clk 0:01:52]}  c4 {[%clk 0:00:38]} 23. Rc1 {[%clk 0:01:35]}  c3 {[%clk 0:00:37]} 24. Ba1 {[%clk 0:01:33]}  Bxe5 {[%clk 0:00:36]} 25. Qd3 {[%clk 0:01:21]}  Bxh2 {[%clk 0:00:31]} 26. Qxc3 {[%clk 0:01:12]}  Qxc3+ {[%clk 0:00:24]} 27. Bxc3 {[%clk 0:01:10]}  Bg3+ {[%clk 0:00:23]} 28. Kf1 {[%clk 0:01:09]}  Bd6 {[%clk 0:00:23]} 29. Ke2 {[%clk 0:01:06]}  Ng7 {[%clk 0:00:20]} 30. Rh3 {[%clk 0:01:03]}  Bxa3 {[%clk 0:00:19]} 31. Rch1 {[%clk 0:01:02]}  h5 {[%clk 0:00:19]} 32. g4 {[%clk 0:01:01]}  Be7 {[%clk 0:00:18]} 33. gxh5 {[%clk 0:01:01]}  gxh5 {[%clk 0:00:18]} 34. Bxh5 {[%clk 0:01:01]}  Nxh5 {[%clk 0:00:18]} 35. Rg1+ {[%clk 0:00:58]}  Ng7 {[%clk 0:00:16]} 36. Rgh1 {[%clk 0:00:58]}  Bf6 {[%clk 0:00:16]} 37. Rh8# {[%clk 0:00:57]} 1-0


[Site "https://www.chess.com"]

[Event "Titled Tuesday Blitz May 4 2021"]
[White "Araujo Filho, Luiz Antonio Coel"]
[Black "Gelman, Alexander"]
[WhiteFideId "2130661"]
[BlackFideId "4118316"]
[WhiteElo "2245"]
[BlackElo "2375"]
[Result "0-1"]
[Round "01"]
[TimeControl "180+1"]
[Date "2021.05.04"]
[WhiteClock "0:00:18"]
[BlackClock "0:01:01"]

1. d4 {[%clk 0:03:00]}  Nf6 {[%clk 0:02:58]} 2. Nf3 {[%clk 0:03:00]}  c5 {[%clk 0:02:58]} 3. e3 {[%clk 0:03:00]}  d6 {[%clk 0:02:59]} 4. Be2 {[%clk 0:02:59]}  Nbd7 {[%clk 0:02:59]} 5. O-O {[%clk 0:02:59]}  b6 {[%clk 0:02:59]} 6. b3 {[%clk 0:03:00]}  e6 {[%clk 0:02:59]} 7. Bb2 {[%clk 0:03:00]}  Bb7 {[%clk 0:03:00]} 8. Nbd2 {[%clk 0:03:00]}  Rg8 {[%clk 0:03:00]} 9. c4 {[%clk 0:02:58]}  g5 {[%clk 0:03:00]} 10. Qc2 {[%clk 0:02:50]}  g4 {[%clk 0:03:00]} 11. Ne1 {[%clk 0:02:51]}  h5 {[%clk 0:03:01]} 12. e4 {[%clk 0:02:49]}  cxd4 {[%clk 0:03:00]} 13. Bxd4 {[%clk 0:02:48]}  h4 {[%clk 0:02:54]} 14. Rd1 {[%clk 0:02:30]}  Be7 {[%clk 0:02:40]} 15. Bb2 {[%clk 0:02:22]}  Qc7 {[%clk 0:02:39]} 16. a4 {[%clk 0:02:13]}  a6 {[%clk 0:02:30]} 17. Ba3 {[%clk 0:02:03]}  Nc5 {[%clk 0:02:27]} 18. e5 {[%clk 0:01:48]}  dxe5 {[%clk 0:02:25]} 19. Nb1 {[%clk 0:01:17]}  Qc6 {[%clk 0:01:48]} 20. f3 {[%clk 0:00:52]}  gxf3 {[%clk 0:01:38]} 21. Bxf3 {[%clk 0:00:48]}  e4 {[%clk 0:01:37]} 22. Be2 {[%clk 0:00:46]}  Nd3 {[%clk 0:01:15]} 23. Bxe7 {[%clk 0:00:37]}  Kxe7 {[%clk 0:01:16]} 24. Bxd3 {[%clk 0:00:31]}  exd3 {[%clk 0:01:16]} 25. Qf2 {[%clk 0:00:32]}  Rg6 {[%clk 0:01:10]} 26. Rxd3 {[%clk 0:00:18]}  Rag8 {[%clk 0:01:10]} 27. Rd2 {[%clk 0:00:18]}  h3 {[%clk 0:01:01]} 28. g3 {[%clk 0:00:18]}  Qh1# {[%clk 0:01:01]} 0-1


[Site "https://www.chess.com"]